[Event "42nd GRE-ch Women 2019"]
[Site "Thessaloniki"]
[Date "2019.11.25"]
[Round "6.4"]
[White "Makka, Evanthia"]
[Black "Grapsa, Georgia"]
[Result "1/2-1/2"]
[ECO "A47"]
[WhiteElo "2059"]
[BlackElo "2026"]
[Annotator "NA RC"]
[PlyCount "104"]
[EventDate "2019.11.20"]
[EventType "tourn"]
[EventCountry "GRE"]
[SourceTitle "playchess.com"]
[Source "ChessBase"]
[SourceQuality "1"]
[TimeControl "40/5400+30:1800+30"]

1. d4 Nf6 {[%emt 0:00:00]} 2. Nf3 {[%emt 0:02:11]} b6 {[%emt 0:00:07]} 3. e3 {[%emt 0:00:33]} Bb7 {[%emt 0:00:09]} 4. Bd3 {[%emt 0:00:38]} g6 {[%emt 0:00:42]} 5. c4 {[%emt 0:01:36]} Bg7 {[%emt 0:03:57]} 6. O-O {[%emt 0:00:18] A47: 1 d4 Nf6 2 Nf3 b6: Torre, London and Colle Systems} O-O {[%emt 0:07:07]} 7. Re1 {[%emt 0:04:01]} Ne4 {[%emt 0:05:29]} 8. d5 {[%emt 0:01:16]} Nc5 {[%emt 0:08:02]} 9. Bc2 {[%emt 0:00:24]} c6 $146 {[%emt 0:03:01]} ({Predecessor:} 9... e6 10. e4 d6 11. Bg5 Qc8 {½-½ (38) Salem,A (2624)-Shabalov,A (2522) Berlin 2015}) 10. e4 {[%emt 0:11:48]} Ba6 {[%emt 0:06:27]} 11. Qe2 {[%emt 0:17:05]} e6 {[%emt 0:05:19]} 12. dxe6 {[%emt 0:03:33]} ({White should try} 12. Nc3 $16) 12... Nxe6 {[%emt 0:00:20]} 13. Na3 {[%emt 0:08:06]} d6 {[%emt 0:10:33]} 14. Qd2 {[%emt 0:05:54]} c5 {[%emt 0:13:14]} 15. Ba4 {[%emt 0:07:46]} Bb7 {[%emt 0:05:12]} 16. Nc2 {[%emt 0:06:37]} Nc6 {[%emt 0:05:17]} 17. Bxc6 {[%emt 0:06:15]} Bxc6 {[%emt 0:00:03]} 18. Rb1 {[%emt 0:00:36] [#]} a5 {[%emt 0:01:30]} (18... Qd7 $1 $17 19. b4 f5) 19. b3 {[%emt 0:01:15]} Re8 {[%emt 0:04:41]} 20. Qd3 {[%emt 0:05:23]} Ra7 {[%emt 0:05:39]} 21. Be3 {[%emt 0:07:19]} Nf8 {[%emt 0:07:26]} 22. Nd2 {[%emt 0:03:30]} Qf6 {[%emt 0:02:40]} 23. f3 {[%emt 0:00:33]} Rd7 {[%emt 0:01:25]} 24. a4 {[%emt 0:01:03]} Ne6 {[%emt 0:00:29]} 25. Nf1 {[%emt 0:00:45]} h5 {[%emt 0:00:36]} 26. Qd2 {[%emt 0:01:45]} h4 {[%emt 0:00:19]} 27. h3 {[%emt 0:00:19]} Qe5 {[%emt 0:00:55]} 28. Nh2 {[%emt 0:00:31]} Qh5 {[%emt 0:00:54]} 29. Rbd1 {[%emt 0:01:26]} f5 {[%emt 0:01:13]} 30. exf5 {[%emt 0:00:37]} gxf5 {[%emt 0:00:03]} 31. Bf2 {[%emt 0:00:17]} Be5 {[%emt 0:00:24]} 32. Ne3 {[%emt 0:01:06]} (32. Kh1 $17) 32... Nd4 $2 {[%emt 0:00:38]} (32... Nf4 $19 {is more deadly.} 33. Kh1 Rg7) 33. Nd5 {[%emt 0:00:42]} Bxd5 {[%emt 0:00:22]} 34. cxd5 {[%emt 0:00:11]} Rde7 {[%emt 0:01:07]} 35. Qd3 {[%emt 0:01:04]} Qg5 {[%emt 0:00:41]} 36. Nf1 {[%emt 0:00:31]} Rg7 {[%emt 0:00:27]} 37. g4 {[%emt 0:00:37]} hxg3 {[%emt 0:00:19]} 38. Bxd4 {[%emt 0:00:20]} Bxd4+ {[%emt 0:00:34]} 39. Kg2 {[%emt 0:00:05]} Rge7 {[%emt 0:00:37]} 40. Rxe7 {[%emt 0:00:00]} Rxe7 {[%emt 0:00:00]} 41. Rd2 {[%emt 0:08:16]} f4 {[%emt 0:04:55]} 42. Re2 {[%emt 0:02:01]} Kg7 {[%emt 0:05:11]} 43. Re4 {[%emt 0:05:02]} Re5 {[%emt 0:03:48]} 44. Qe2 {[%emt 0:02:55]} Qe7 {[%emt 0:09:00]} 45. Rxe5 {[%emt 0:04:18]} Bxe5 {[%emt 0:00:08]} 46. Nd2 {[%emt 0:03:18]} Qf7 {[%emt 0:00:49]} 47. Qe4 {[%emt 0:00:25]} Qf6 {[%emt 0:02:19]} 48. Nc4 {[%emt 0:01:10]} Ba1 {[%emt 0:00:28]} 49. Qd3 {[%emt 0:04:46]} (49. Qe8 $11) 49... Qd4 {[%emt 0:01:01]} 50. Qe2 {[%emt 0:03:27]} (50. Qd2 $1 $11) 50... Qxd5 {[%emt 0:01:04]} 51. Qe7+ {[%emt 0:00:07]} Kg8 {[%emt 0:02:27]} ({Black should play} 51... Kg6 $15) 52. Qe8+ {[%emt 0:00:39]} Kg7 {[%emt 0:00:14]} (52... Kh7 $15) 1/2-1/2

[Event "42nd GRE-ch Women 2019"]
[Site "Thessaloniki"]
[Date "2019.11.26"]
[Round "7.2"]
[White "Grapsa, Georgia"]
[Black "Vozinaki, Anthi - Maria"]
[Result "1/2-1/2"]
[ECO "A53"]
[WhiteElo "2026"]
[BlackElo "1878"]
[Annotator "NA RC"]
[PlyCount "106"]
[EventDate "2019.11.20"]
[EventType "tourn"]
[EventCountry "GRE"]
[SourceTitle "playchess.com"]
[Source "ChessBase"]
[SourceQuality "1"]
[TimeControl "40/5400+30:1800+30"]

1. d4 {[%emt 0:00:00]} Nf6 {[%emt 0:00:00]} 2. c4 {[%emt 0:00:00]} d6 {[%emt 0:00:22]} 3. Nf3 {[%emt 0:00:11]} Nbd7 {[%emt 0:00:00]} 4. g3 {[%emt 0:00:06]} e5 {[%emt 0:00:00]} 5. Bg2 {[%emt 0:00:07]} Be7 {[%emt 0:00:04]} 6. O-O {[%emt 0:00:11]} O-O {[%emt 0:00:07]} 7. Nc3 {[%emt 0:00:24]} c6 {[%emt 0:00:09]} 8. h3 {[%emt 0:00:20]} Re8 {[%emt 0:00:25]} 9. e4 {[%emt 0:00:21]} Bf8 {[%emt 0:04:45]} 10. Re1 {[%emt 0:07:22] A55: Old Indian Defence with Nf3 and e4} a6 {[%emt 0:01:33]} 11. b3 {[%emt 0:03:36]} b5 {[%emt 0:12:40]} 12. d5 {[%emt 0:01:58]} cxd5 {[%emt 0:07:03]} 13. cxd5 {[%emt 0:00:18]} Bb7 {[%emt 0:01:15]} (13... Qc7 $5 {[%cal Rc7c3]} 14. Bd2 Bb7 $14) 14. Bb2 $146 {[%emt 0:05:01]} ({Predecessor:} 14. Bd2 Rc8 15. Qe2 g6 16. Rec1 Nh5 17. Ne1 Ng7 {½-½ (59) Ilic,Z (2285)-Ivanovic,D (2360) Kragujevac 2013}) 14... Qb6 {[%emt 0:04:31]} 15. g4 {[%emt 0:11:28]} g6 {[%emt 0:04:19]} 16. Qe2 {[%emt 0:01:16]} Rec8 {[%emt 0:04:05]} 17. Rec1 {[%emt 0:04:26]} Ne8 {[%emt 0:12:28]} 18. h4 {[%emt 0:11:09]} Ng7 {[%emt 0:04:08]} 19. Bh3 {[%emt 0:00:35]} Qd8 {[%emt 0:02:33]} 20. Qe3 {[%emt 0:01:51]} Be7 {[%emt 0:05:44]} 21. g5 {[%emt 0:11:56]} Rc7 {[%emt 0:11:31]} (21... f5 $11) 22. Nh2 {[%emt 0:04:28]} (22. Ne2 $14) 22... f5 {[%emt 0:04:20]} 23. gxf6 {[%emt 0:03:28]} Bxf6 {[%emt 0:04:08]} (23... Nxf6 $15 24. a4 b4) 24. Ng4 {[%emt 0:00:11]} Bxh4 {[%emt 0:03:27]} 25. Ne2 {[%emt 0:04:11]} Rxc1+ {[%emt 0:05:25]} 26. Rxc1 {[%emt 0:03:14]} h5 {[%emt 0:02:19]} 27. Nh6+ {[%emt 0:04:07]} Kh7 {[%emt 0:04:44]} 28. Nf7 {[%emt 0:00:29]} Qf6 {[%emt 0:00:20]} 29. Rc7 {[%emt 0:05:00] Double Attack} Rf8 {[%emt 0:01:05]} 30. Qh6+ {[%emt 0:08:15]} Kg8 {[%emt 0:00:04]} 31. f4 {[%emt 0:00:41]} Rxf7 {[%emt 0:01:02]} 32. Bxd7 {[%emt 0:01:11]} ({But not} 32. Rxb7 g5 $15) 32... Qd8 {[%emt 0:00:44]} 33. Rxb7 {[%emt 0:01:38]} Rxd7 {[%emt 0:00:12]} 34. Rxd7 {[%emt 0:01:37]} Qxd7 {[%emt 0:00:04]} 35. Qxg6 {[%emt 0:00:24]} Qa7+ {[%emt 0:00:38]} 36. Kh1 {[%emt 0:00:39]} Qe3 {[%emt 0:01:13]} 37. Qg2 {[%emt 0:00:57]} Bf2 {[%emt 0:00:18]} 38. f5 {[%emt 0:02:22]} Qxe2 {[%emt 0:00:51]} 39. f6 $19 {[%emt 0:00:05]} Qe1+ {[%emt 0:00:00]} 40. Kh2 {[%emt 0:00:00]} Qg1+ {[%emt 0:00:00]} 41. Qxg1 {[%emt 0:04:06]} Bxg1+ {[%emt 0:00:36]} 42. Kxg1 {[%emt 0:00:02]} Ne8 {[%emt 0:00:26]} 43. Ba3 {[%emt 0:00:13]} Kf7 {[%emt 0:02:02]} 44. Kg2 {[%emt 0:00:08]} Kxf6 {[%emt 0:00:50]} 45. Kg3 {[%emt 0:01:49]} Kg6 {[%emt 0:00:43]} 46. Bb4 {[%emt 0:00:34]} Nf6 {[%emt 0:03:51]} 47. Kf3 {[%emt 0:00:10]} Ne8 {[%emt 0:00:11]} 48. Kg3 {[%emt 0:00:05]} Kg5 {[%emt 0:00:34]} 49. Bd2+ {[%emt 0:00:10]} Kf6 {[%emt 0:00:49]} 50. Kh4 {[%emt 0:00:33]} Kg6 {[%emt 0:01:24]} 51. Bg5 {[%emt 0:01:37]} Nc7 {[%emt 0:01:48]} 52. Be7 {[%emt 0:00:45]} Ne8 {[%emt 0:00:09]} 53. Bg5 {[%emt 0:00:32]} Nc7 {[%emt 0:00:17]} 1/2-1/2

[Event "42nd GRE-ch Women 2019"]
[Site "Thessaloniki"]
[Date "2019.11.26"]
[Round "7.3"]
[White "Koutsidi, Amalia"]
[Black "Makka, Evanthia"]
[Result "1/2-1/2"]
[ECO "B11"]
[WhiteElo "1724"]
[BlackElo "2059"]
[Annotator "NA RC"]
[PlyCount "75"]
[EventDate "2019.11.20"]
[EventType "tourn"]
[EventCountry "GRE"]
[SourceTitle "playchess.com"]
[Source "ChessBase"]
[SourceQuality "1"]
[TimeControl "40/5400+30:1800+30"]

1. e4 {[%emt 0:00:00]} c6 {[%emt 0:01:32]} 2. Nc3 {[%emt 0:00:00]} d5 {[%emt 0:00:07]} 3. Nf3 {[%emt 0:00:00]} Bg4 {[%emt 0:00:28]} 4. h3 {[%emt 0:00:00]} Bh5 {[%emt 0:00:06]} 5. exd5 {[%emt 0:00:03]} cxd5 {[%emt 0:00:08]} 6. Bb5+ {[%emt 0:00:09]} Nc6 {[%emt 0:00:06]} 7. g4 {[%emt 0:00:24]} Bg6 {[%emt 0:00:07]} 8. Ne5 {[%emt 0:00:22]} Rc8 {[%emt 0:00:34]} 9. d4 {[%emt 0:00:32]} e6 {[%emt 0:00:49]} 10. h4 {[%emt 0:00:20]} f6 {[%emt 0:00:00]} 11. Nxg6 {[%emt 0:00:05]} hxg6 {[%emt 0:00:00]} 12. Qd3 {[%emt 0:00:34]} Kf7 {[%emt 0:00:32]} 13. Bxc6 {[%emt 0:00:06]} Rxc6 {[%emt 0:00:00]} 14. Bd2 {[%emt 0:00:21] B11: Caro-Kann: Two Knights Variation} (14. Ne2 Bd6 15. Bf4 Ne7 16. Bxd6 Qxd6 17. O-O-O a6 18. Kb1 b5 19. h5 Rcc8 20. f4 Qc7 21. hxg6+ Nxg6 {0-1 (47) Abreu Delgado,A (2452)-Barbosa,O (2518) chess.com INT 2017}) 14... Bb4 {[%emt 0:01:15]} 15. O-O-O {[%emt 0:00:53]} Bxc3 {[%emt 0:02:54]} 16. Bxc3 {[%emt 0:00:14]} Qc7 {[%emt 0:01:42]} 17. Kb1 {[%emt 0:05:47]} Ne7 $146 {[%emt 0:02:12]} (17... Qd6 $14) ({Predecessor:} 17... Ra6 18. Bb4 Nh6 19. h5 gxh5 20. Rxh5 Qc4 21. Qxc4 dxc4 {1-0 (54) Kundin,A (2305)-Mittelman,G (2415) Rishon Le Ziyyon 1997}) 18. Rde1 {[%emt 0:12:03]} Qb6 {[%emt 0:39:23]} 19. Qg3 {[%emt 0:16:01]} a5 {[%emt 0:08:22]} 20. a3 {[%emt 0:18:49]} Qa7 {[%emt 0:16:49]} 21. h5 {[%emt 0:03:33]} gxh5 {[%emt 0:11:47]} 22. gxh5 {[%emt 0:09:16]} b6 {[%emt 0:01:46]} 23. Re2 {[%emt 0:15:10]} Qc7 {[%emt 0:02:25]} 24. Qg4 {[%emt 0:01:37]} Nf5 $14 {[%emt 0:03:18]} 25. Qg6+ {[%emt 0:03:56]} Kf8 {[%emt 0:00:12]} 26. Qg4 {[%emt 0:04:17]} Qf7 {[%emt 0:00:44]} 27. Bd2 {[%emt 0:00:37]} Rc4 {[%emt 0:01:44]} 28. c3 {[%emt 0:01:10]} b5 {[%emt 0:00:46]} 29. Rhe1 {[%emt 0:01:55]} Rc6 {[%emt 0:00:37]} 30. Qf4 {[%emt 0:01:37]} Rd6 {[%emt 0:00:43]} 31. c4 {[%emt 0:02:08]} bxc4 {[%emt 0:02:22]} 32. Bxa5 {[%emt 0:00:15]} Kg8 {[%emt 0:00:06]} 33. Bb4 {[%emt 0:00:27]} Rc6 {[%emt 0:01:22]} 34. Qb8+ {[%emt 0:01:08]} Kh7 {[%emt 0:00:00]} 35. Qf4 {[%emt 0:00:26]} Kg8 {[%emt 0:00:00]} 36. Qb8+ {[%emt 0:00:12]} Kh7 {[%emt 0:00:00]} 37. Qf4 {[%emt 0:00:04]} Kg8 {[%emt 0:00:39]} 38. Qb8+ {[%emt 0:00:24]} 1/2-1/2

[Event "42nd GRE-ch Women 2019"]
[Site "Thessaloniki"]
[Date "2019.11.26"]
[Round "7.4"]
[White "Markantonaki, Haritomeni"]
[Black "Stefanidi, Maria-Anna"]
[Result "1-0"]
[ECO "B75"]
[WhiteElo "2178"]
[BlackElo "2012"]
[Annotator "RC"]
[PlyCount "95"]
[EventDate "2019.11.20"]
[EventType "tourn"]
[EventCountry "GRE"]
[SourceTitle "playchess.com"]
[Source "ChessBase"]
[SourceQuality "1"]
[TimeControl "40/5400+30:1800+30"]

1. e4 {[%emt 0:00:00]} c5 {[%emt 0:00:00]} 2. Nf3 {[%emt 0:00:00]} d6 {[%emt 0:00:00]} 3. d4 {[%emt 0:00:00]} cxd4 {[%emt 0:00:02]} 4. Nxd4 {[%emt 0:00:00]} Nf6 {[%emt 0:00:04]} 5. Nc3 {[%emt 0:00:01]} g6 {[%emt 0:00:03]} 6. Be3 {[%emt 0:00:36]} Bg7 {[%emt 0:00:07]} 7. f3 {[%emt 0:00:56]} a6 {[%emt 0:00:05]} 8. Qd2 {[%emt 0:00:48]} Nbd7 {[%emt 0:01:00]} 9. g4 {[%emt 0:01:30]} Ne5 {[%emt 0:05:05]} 10. g5 {[%emt 0:05:33]} Nfd7 {[%emt 0:00:36]} 11. O-O-O {[%emt 0:03:51]} b5 {[%emt 0:03:07]} 12. f4 {[%emt 0:02:59]} Nc4 {[%emt 0:03:56]} 13. Bxc4 {[%emt 0:00:09]} bxc4 {[%emt 0:00:27]} 14. Nc6 {[%emt 0:03:21]} Qc7 {[%emt 0:02:13]} 15. Nxe7 {[%emt 0:01:55]} Bb7 {[%emt 0:06:15]} 16. Ned5 {[%emt 0:02:54]} Qa5 {[%emt 0:07:31]} 17. Bd4 {[%emt 0:01:58]} O-O {[%emt 0:02:32]} 18. Bxg7 {[%emt 0:10:01]} Kxg7 {[%emt 0:01:50]} 19. Qd4+ {[%emt 0:00:07]} f6 {[%emt 0:01:00]} 20. Qxc4 {[%emt 0:02:14]} Rac8 {[%emt 0:05:06]} 21. Qd4 {[%emt 0:00:59]} Qc5 {[%emt 0:00:41]} 22. Qxc5 {[%emt 0:06:38]} Rxc5 {[%emt 0:00:59]} 23. h4 {[%emt 0:00:49]} f5 {[%emt 0:10:19]} 24. Rhe1 {[%emt 0:03:14]} fxe4 {[%emt 0:06:38]} 25. Rxe4 {[%emt 0:00:21]} Rf7 {[%emt 0:00:05]} 26. Re6 {[%emt 0:05:01]} Rc6 {[%emt 0:01:28]} 27. Ne4 {[%emt 0:03:14]} Nc5 {[%emt 0:05:39]} 28. Nxc5 {[%emt 0:01:30]} dxc5 {[%emt 0:00:07]} 29. Rxc6 {[%emt 0:03:47]} Bxc6 {[%emt 0:00:07]} 30. Nf6 {[%emt 0:00:05]} Re7 {[%emt 0:07:44]} 31. c4 {[%emt 0:02:39]} Re6 {[%emt 0:02:28]} 32. Rd8 {[%emt 0:02:32]} h5 {[%emt 0:04:29]} 33. Kd2 {[%emt 0:02:51]} Kf7 {[%emt 0:00:23]} 34. a3 {[%emt 0:04:25]} Ke7 {[%emt 0:02:34]} 35. Rd3 {[%emt 0:00:39]} Kf7 {[%emt 0:02:48]} 36. b4 {[%emt 0:01:13]} cxb4 {[%emt 0:04:41]} 37. axb4 {[%emt 0:00:07]} Bg2 {[%emt 0:00:31]} 38. Rd7+ {[%emt 0:15:02]} Kf8 {[%emt 0:00:32]} 39. c5 {[%emt 0:01:32]} Bf1 {[%emt 0:01:12]} 40. Rd6 {[%emt 0:00:00]} Re2+ {[%emt 0:00:00]} 41. Kc3 {[%emt 0:04:12]} Re3+ {[%emt 0:06:09]} 42. Kd4 {[%emt 0:00:27]} Rd3+ {[%emt 0:03:49]} 43. Ke4 {[%emt 0:00:53]} Rb3 {[%emt 0:01:18]} 44. Nd5 {[%emt 0:02:11]} Bg2+ {[%emt 0:14:35]} 45. Ke5 {[%emt 0:00:48]} Bxd5 {[%emt 0:01:20]} 46. Kxd5 {[%emt 0:00:21]} Rxb4 {[%emt 0:00:06]} 47. c6 {[%emt 0:01:15]} Rb5+ {[%emt 0:00:50]} 48. Ke6 {[%emt 0:00:24]} 1-0

[Event "42nd GRE-ch Women 2019"]
[Site "Thessaloniki"]
[Date "2019.11.26"]
[Round "7.5"]
[White "Serefidou, Despina"]
[Black "Makka, Ioulia"]
[Result "0-1"]
[ECO "B11"]
[WhiteElo "1899"]
[BlackElo "2048"]
[Annotator "NA RC"]
[PlyCount "68"]
[EventDate "2019.11.20"]
[EventType "tourn"]
[EventCountry "GRE"]
[SourceTitle "playchess.com"]
[Source "ChessBase"]
[SourceQuality "1"]
[TimeControl "40/5400+30:1800+30"]

1. e4 c6 {[%emt 0:03:28]} 2. Nc3 {[%emt 0:00:00]} d5 {[%emt 0:00:14]} 3. Nf3 {[%emt 0:00:00]} Bg4 {[%emt 0:00:23]} 4. h3 {[%emt 0:00:05]} Bxf3 {[%emt 0:00:11]} 5. Qxf3 {[%emt 0:00:09]} e6 {[%emt 0:00:26]} 6. d4 {[%emt 0:00:14]} Nf6 {[%emt 0:01:06]} 7. Bd3 {[%emt 0:00:44]} dxe4 {[%emt 0:09:40]} 8. Nxe4 {[%emt 0:00:18]} Nxe4 {[%emt 0:00:58]} 9. Qxe4 {[%emt 0:00:27]} Nd7 {[%emt 0:00:50]} 10. c3 {[%emt 0:01:42]} Nf6 {[%emt 0:00:00]} 11. Qe2 {[%emt 0:01:31]} Qc7 {[%emt 0:13:26] B11: Caro-Kann: Two Knights Variation} 12. g3 $146 {[%emt 0:06:20]} ({Predecessor:} 12. O-O Bd6 13. Qf3 h6 14. Re1 Qa5 15. Bf4 Bxf4 16. Qxf4 O-O-O 17. Re5 Qc7 18. Qf3 Rd5 19. Rae1 {0-1 (64) David,A (2565)-Kovalenko,I (2650) Tromsoe 2014}) 12... Bd6 {[%emt 0:03:36]} 13. Bc2 {[%emt 0:14:47]} O-O-O {[%emt 0:14:31]} 14. Bg5 {[%emt 0:23:43]} Qa5 {[%emt 0:10:05]} 15. Bxf6 {[%emt 0:11:02]} gxf6 {[%emt 0:00:05]} 16. Qc4 {[%emt 0:10:42]} Qg5 {[%emt 0:03:38]} 17. h4 {[%emt 0:02:20]} Qh5 {[%emt 0:08:02]} 18. Qe2 {[%emt 0:06:45]} Qh6 {[%emt 0:03:59]} 19. Rd1 {[%emt 0:11:13]} f5 {[%emt 0:06:15]} 20. b4 {[%emt 0:01:01]} Kb8 $11 {[%emt 0:02:53]} 21. a3 {[%emt 0:03:23]} Rhg8 {[%emt 0:02:47]} 22. Qf3 {[%emt 0:02:40]} Rg4 {[%emt 0:07:33]} 23. b5 {[%emt 0:01:41]} cxb5 {[%emt 0:00:15]} 24. Rb1 {[%emt 0:00:29]} a6 {[%emt 0:02:30]} 25. a4 {[%emt 0:00:30]} b4 {[%emt 0:00:42]} 26. cxb4 {[%emt 0:00:40]} Rxd4 {[%emt 0:01:31]} 27. Qc3 {[%emt 0:00:24]} Bxb4 {[%emt 0:01:51]} 28. Rxb4 {[%emt 0:00:23]} Rxb4 {[%emt 0:00:33]} 29. Qxb4 {[%emt 0:00:41]} Qc1+ {[%emt 0:00:29]} 30. Ke2 {[%emt 0:00:25]} Qxh1 {[%emt 0:01:17]} 31. Qe7 {[%emt 0:00:28]} Qd5 {[%emt 0:00:37]} 32. Qb4 {[%emt 0:00:33]} Qd7 {[%emt 0:01:21]} 33. Qf4+ {[%emt 0:00:26]} Ka8 {[%emt 0:00:09]} 34. a5 {[%emt 0:00:36]} Qb5+ {[%emt 0:00:20]} 0-1

[Event "42nd GRE-ch Women 2019"]
[Site "Thessaloniki"]
[Date "2019.11.27"]
[Round "8.1"]
[White "Hristodoulaki, Antonia"]
[Black "Makka, Ioulia"]
[Result "0-1"]
[ECO "B13"]
[WhiteElo "2054"]
[BlackElo "2048"]
[Annotator "NA RC"]
[PlyCount "162"]
[EventDate "2019.11.20"]
[EventType "tourn"]
[EventCountry "GRE"]
[SourceTitle "playchess.com"]
[Source "ChessBase"]
[SourceQuality "1"]
[TimeControl "40/5400+30:1800+30"]

1. e4 {[%emt 0:00:00]} c6 {[%emt 0:00:09]} 2. d4 {[%emt 0:00:00]} d5 {[%emt 0:00:06]} 3. exd5 {[%emt 0:00:00]} cxd5 {[%emt 0:00:04]} 4. Bd3 {[%emt 0:00:00]} Nc6 {[%emt 0:00:47]} 5. c3 {[%emt 0:00:00]} Nf6 {[%emt 0:02:08]} 6. Bf4 {[%emt 0:01:24]} g6 {[%emt 0:01:10]} 7. Nf3 {[%emt 0:01:04]} Bg7 {[%emt 0:09:30]} 8. h3 {[%emt 0:00:35]} Bf5 {[%emt 0:04:20]} 9. Bxf5 {[%emt 0:01:59] B13: Caro-Kann: Exchange Variation and Panov-Botvinnik Attack} (9. O-O Bxd3 10. Qxd3 O-O 11. Nbd2 e6 12. Rfe1 a6 13. a4 Qb6 14. b4 Rac8 15. a5 Qd8 16. Nb3 Na7 {0-1 (35) Geller,J (2518)-Indjic,A (2620) St Petersburg 2018}) 9... gxf5 {[%emt 0:00:00]} 10. Nbd2 {[%emt 0:00:32]} e6 {[%emt 0:01:59]} 11. Ne5 {[%emt 0:12:45]} Nd7 {[%emt 0:12:45]} 12. Nd3 $146 {[%emt 0:07:06]} ({Predecessor:} 12. Nxd7 Qxd7 13. Nb3 O-O 14. Qh5 f6 15. O-O-O Qf7 16. Qh4 e5 17. dxe5 fxe5 {0-1 (68) Erenska Barlo,H (2235)-Myc,M (2350) Koszalin 1997}) 12... Rc8 {[%emt 0:23:19]} 13. g4 {[%emt 0:08:35]} Ne7 {[%emt 0:01:49]} 14. Nf1 {[%emt 0:10:24]} h5 {[%emt 0:18:36]} 15. gxh5 {[%emt 0:04:24]} a6 {[%emt 0:01:21]} 16. Ng3 {[%emt 0:02:44]} Ng8 {[%emt 0:03:22]} 17. Qe2 {[%emt 0:02:22]} Qe7 {[%emt 0:00:56]} 18. Kf1 {[%emt 0:01:33]} Ndf6 {[%emt 0:01:51]} 19. Rg1 {[%emt 0:06:56]} Kf8 {[%emt 0:02:48]} 20. Be5 {[%emt 0:04:05]} Rh7 {[%emt 0:01:16]} 21. f3 {[%emt 0:10:25]} Bh6 {[%emt 0:02:55] [#]} (21... Ne8 $14) 22. Re1 $1 {[%emt 0:02:51]} b6 {[%emt 0:04:32]} 23. Qg2 {[%emt 0:01:36]} Qd7 {[%emt 0:00:45]} 24. Qc2 {[%emt 0:02:12]} Qc6 {[%emt 0:02:16]} 25. Kf2 {[%emt 0:02:11]} Nd7 {[%emt 0:01:32]} 26. Nb4 {[%emt 0:00:30]} Qb5 {[%emt 0:01:36]} 27. Bd6+ {[%emt 0:01:19]} Kg7 {[%emt 0:00:54]} 28. Nxf5+ {[%emt 0:03:53]} Kh8 {[%emt 0:00:03] [#]} 29. Ng3 $2 {[%emt 0:05:19]} (29. Rxe6 $3 $18 {[%mdl 512] and White stays clearly on top.} fxe6 30. Nh4) 29... Bg5 {[%emt 0:01:04]} 30. Qd1 {[%emt 0:02:48]} a5 {[%emt 0:00:33]} 31. Nd3 {[%emt 0:00:38]} Bh4 {[%emt 0:00:13]} 32. f4 $2 {[%emt 0:01:35] [#]} (32. Kg2 $16) 32... Ngf6 {[%emt 0:00:20]} (32... Nh6 $1 $17 {[%cal Rh6f5]} 33. Kf3 Bxg3) 33. Ke3 $2 {[%emt 0:03:23]} (33. a4 $11 {and White is okay.} Qc6 34. Be5) 33... Bxg3 {[%emt 0:00:48]} 34. Rxg3 {[%emt 0:00:02]} Ne4 {[%emt 0:00:10]} 35. Reg1 {[%emt 0:01:37]} Nxd6 {[%emt 0:00:21]} 36. Rg5 {[%emt 0:00:40]} Nf5+ {[%emt 0:00:43]} 37. Kd2 {[%emt 0:00:28]} Nf6 {[%emt 0:00:24]} 38. Ke2 {[%emt 0:00:31]} Ne4 {[%emt 0:00:34]} 39. R5g2 {[%emt 0:00:08]} Nf6 $2 {[%emt 0:00:45]} (39... Qc4 $19 40. Qb3 Qc7) 40. Rg5 $1 {[%emt 0:00:00]} Nxh5 {[%emt 0:00:00]} 41. Qf1 {[%emt 0:02:16]} f6 {[%emt 0:09:40]} 42. Rg6 {[%emt 0:00:49]} Ne7 {[%emt 0:04:03]} 43. R6g4 {[%emt 0:00:41]} Rg8 {[%emt 0:02:01]} 44. Qf3 {[%emt 0:01:24]} Rxg4 {[%emt 0:02:46]} 45. hxg4 {[%emt 0:00:28]} Ng7 {[%emt 0:01:03]} 46. Rh1 {[%emt 0:00:55]} Rxh1 {[%emt 0:00:17]} 47. Qxh1+ {[%emt 0:00:02]} Kg8 {[%emt 0:00:09]} 48. Qh6 {[%emt 0:00:32]} Kf7 {[%emt 0:00:52]} 49. Kd2 {[%emt 0:01:04]} Ng6 {[%emt 0:01:41]} 50. g5 {[%emt 0:02:38]} fxg5 {[%emt 0:03:53]} 51. Qxg5 {[%emt 0:00:03]} Qe8 {[%emt 0:02:24]} 52. Qh6 {[%emt 0:04:32]} Qe7 {[%emt 0:00:10]} 53. Kc2 {[%emt 0:00:28]} Qf6 {[%emt 0:01:00]} 54. b3 {[%emt 0:01:43]} Qf5 {[%emt 0:00:55]} 55. c4 {[%emt 0:01:03]} Qe4 {[%emt 0:01:40]} 56. Kc3 {[%emt 0:00:13]} Qxd4+ {[%emt 0:02:12]} 57. Kxd4 {[%emt 0:00:26]} Nf5+ {[%emt 0:00:07]} 58. Kc3 {[%emt 0:00:20]} d4+ {[%emt 0:00:29]} 59. Kd2 {[%emt 0:01:09]} Nxh6 {[%emt 0:00:07]} 60. Ke2 {[%emt 0:00:31]} Ke7 {[%emt 0:01:09]} 61. Kf3 {[%emt 0:00:50]} Kd6 {[%emt 0:00:38]} 62. Ke4 {[%emt 0:00:07]} Nf5 {[%emt 0:00:31]} 63. a3 {[%emt 0:00:05]} Kc6 {[%emt 0:01:52]} 64. b4 {[%emt 0:00:25]} axb4 {[%emt 0:02:39]} 65. axb4 {[%emt 0:00:03]} Kd7 {[%emt 0:00:35]} 66. Nb2 {[%emt 0:01:03]} Nge7 {[%emt 0:00:24]} 67. Na4 {[%emt 0:00:39]} Nc8 {[%emt 0:00:28]} 68. Ke5 {[%emt 0:00:38]} d3 {[%emt 0:00:30]} 69. Ke4 {[%emt 0:01:55]} d2 {[%emt 0:00:21]} 70. Nb2 {[%emt 0:00:22]} Nce7 {[%emt 0:00:42]} 71. Kd3 {[%emt 0:00:16]} Ng6 {[%emt 0:00:21]} 72. Kxd2 {[%emt 0:00:35]} Nxf4 {[%emt 0:00:11]} 73. Kc3 {[%emt 0:00:37]} e5 {[%emt 0:00:45]} 74. Kd2 {[%emt 0:00:57]} e4 {[%emt 0:00:32]} 75. Na4 {[%emt 0:00:28]} e3+ {[%emt 0:00:38]} 76. Ke1 {[%emt 0:00:03]} Kc7 {[%emt 0:00:33]} 77. Nc3 {[%emt 0:00:09]} Nd3+ {[%emt 0:00:27]} 78. Ke2 {[%emt 0:00:30]} Nxb4 {[%emt 0:00:05]} 79. Kf3 {[%emt 0:00:19]} Nc2 {[%emt 0:00:49]} 80. Ke4 {[%emt 0:01:31]} Nfd4 {[%emt 0:00:22]} 81. Kd3 {[%emt 0:01:24]} e2 {[%emt 0:00:34] Kxd4} 0-1